Workbook

Sheet Tabelle1
A1: Arbeitslosenzahlen im regionalen Vergleich für September 2011 | N1: =TODAY() -> 2011-09-29
A3: Berechnung der Arbeitslosenquote: Anteil der Arbeitslosen an der Zahl der zivilen Erwerbspersonen
A4: Quelle: Bundesagentur für Arbeit (BA)
A6: Landkreise/ kreisfreie Stadt | B6: gesamt | I6: Im Bereich
I7: SGB II | M7: SGB III
B8: aktuell (absolut) | C8: Veränderung ggü. Vormonat | D8: Arb.los.- Quote | E8: Arb.los.- Quote Vormonat | F8: Veränderung ggü. Vormonat | G8: Arb.los.- Quote Vorjahres-monat | H8: Veränderung ggü. Vorjahres-monat | I8: aktuell (absolut) | J8: Veränderung ggü. Vormonat | K8: Arb.los.- Quote | L8: Anteil an allen Arbeitslosen in % | M8: aktuell (absolut) | N8: Veränderung ggü. Vormonat | O8: Arb.los.- Quote | P8: Anteil an allen Arbeitslosen in %
A9: Spree-Neiße | B9: =I9+M9 -> 6536 | C9: -155 | D9: =(K9+O9) -> 0.096 | E9: 0.099 | F9: =D9-E9 -> -0.003 | G9: 0.102 | H9: =D9-G9 -> -0.006 | I9: 4310 | J9: -66 | K9: 0.063 | L9: =I9*100/B9 -> 65.94247246 | M9: 2226 | N9: -89 | O9: 0.033 | P9: =M9*100/B9 -> 34.05752754 | R9: =I9+M9 -> 6536 | S9: -155 | T9: 0.096
A10: Stadt Cottbus | B10: 6543 | C10: -354 | D10: =(K10+O10) -> 0.121 | E10: 0.132 | F10: =D10-E10 -> -0.011 | G10: 0.119 | H10: =D10-G10 -> 0.002 | I10: 5093 | J10: -291 | K10: 0.094 | L10: =I10*100/B10 -> 77.83891181 | M10: 1450 | N10: -63 | O10: 0.027 | P10: =M10*100/B10 -> 22.16108819 | R10: 6543 | S10: -354 | T10: 0.121
A11: Elbe-Elster | B11: 7532 | C11: -300 | D11: =(K11+O11) -> 0.128 | E11: 0.133 | F11: =D11-E11 -> -0.005 | G11: 0.12 | H11: =D11-G11 -> 0.008 | I11: 5571 | J11: -187 | K11: 0.095 | L11: =I11*100/B11 -> 73.96441848 | M11: 1961 | N11: -113 | O11: 0.033 | P11: =M11*100/B11 -> 26.03558152 | R11: 7532 | S11: -300 | T11: 0.128
A12: Oberspreewald - Lausitz | B12: 8822 | C12: -310 | D12: =(K12+O12)-0.001 -> 0.137 | E12: 0.142 | F12: =D12-E12 -> -0.005 | G12: 0.137 | H12: =D12-G12 -> 0 | I12: 6796 | J12: -212 | K12: 0.106 | L12: =I12*100/B12 -> 77.03468601 | M12: 2026 | N12: -98 | O12: 0.032 | P12: =M12*100/B12 -> 22.96531399 | R12: 8822 | S12: -310 | T12: 0.138
B17: Formeln (autom. Berechng.) | I17: manuell ausfüllen lt. einz. Kreisreporten SPN, Cottbus, EE, OSL, Reiter: Alo-B1Q
G18: Kommastelle prüfen !!!!
I25: 4310 | L25: 2026

Sheet Tabelle2

Sheet Tabelle3
